Cogmind - Beta 11.1 @@@ ROGUE MODE // 2022.07.28 @ 15:06:53 Player: WayneKnight Result: Destroyed by 8R-AWN with 8R-AWN's Boregun Performance ------------- Evolutions (0) 0 Regions Visited (3) 600 Robots Destroyed (15) 75 Value Destroyed (328) 328 Prototype IDs (2) 40 Alien Tech Used (0) 0 Bonus (0) 0 TOTAL SCORE: 1043 Bonus ------- None Cogmind --------- Core Integrity 0/250 Matter 140/300 Energy 51/100 System Corruption 9% Temperature Cool (0) Movement Walking (120) Location -10/Exiles Parts ------- > --- POWER (1) -------- (None) > --- PROPULSION (2) --- Improved Aluminum Leg Improved Aluminum Leg > --- UTILITY (2) ------ Small Storage Unit Targeting Computer > --- WEAPON (2) ------- Beam Rifle Assault Rifle > --- INVENTORY (8) ---- Improved Aluminum Leg Sensor Array Seismic Detector Grenade Launcher Peak State ------------ > --- POWER ------------ Light Ion Engine > --- PROPULSION ------- Improved Aluminum Leg Improved Aluminum Leg > --- UTILITY ---------- Small Storage Unit Targeting Computer > --- WEAPON ----------- Minigun Heavy Battle Rifle > --- INVENTORY -------- Improved Aluminum Leg Improved Aluminum Leg Sensor Array Seismic Detector Beam Rifle Assault Rifle Assault Rifle Grenade Launcher [Rating: 15] Favorites ----------- Power Light Ion Engine Engine Light Ion Engine Propulsion Light Treads Treads Light Treads Leg Improved Aluminum Leg Utility Small Storage Unit Storage Small Storage Unit Processor Targeting Computer Protection Power Shielding Weapon Assault Rifle Energy Gun Beam Rifle Ballistic Gun Assault Rifle Launcher Grenade Launcher Build | -11 -10 -10 -10 ------- Run | Scr Mat Min Exi Slots Evolved . | . . . . Power . | . . . . Propulsion . | . . . . Utility . | . . . . Weapon . | . . . . Parts Attached 23 | 2 14 2 5 Power 1 | . 1 . . Engine 1 | . 1 . . Core . | . . . . Reactor . | . . . . Propulsion 6 | 2 3 . 1 Treads 3 | 2 1 . . Leg 3 | . 2 . 1 Wheel . | . . . . Hover . | . . . . Flight . | . . . . Utility 2 | . 2 . . Device . | . . . . Storage . | . . . . Processor 1 | . 1 . . Hackware . | . . . . Protection 1 | . 1 . . Artifact . | . . . . Weapon 14 | . 8 2 4 Energy Gun 3 | . 2 . 1 Energy Cannon . | . . . . Ballistic Gun 9 | . 5 2 2 Ballistic Cannon . | . . . . Launcher 2 | . 1 . 1 Special Weapon . | . . . . Impact Weapon . | . . . . Slashing Weapon . | . . . . Piercing Weapon . | . . . . Special Melee Weapon . | . . . . Unidentified Prototypes . | . . . . Corrupted Parts 1 | . . 1 . System Corruption 5 | . . 5 . Parts Lost 7 | . 2 . 5 Power 2 | . 1 . 1 Propulsion 1 | . . . 1 Utility . | . . . . Weapon 4 | . 1 . 3 Highest Loss Streak 5 | . 1 . 5 To Critical Strikes 3 | . . . 3 Average Slot Usage (%) 94 | . 92 100 90 Engine 12 | . 11 14 7 Treads 15 | . 23 . . Leg 12 | . 4 28 28 Storage 14 | . 14 14 14 Processor 9 | . 7 14 14 Protection 1 | . 1 . . Energy Gun 2 | . 3 1 . Ballistic Gun 24 | . 23 26 24 Naked Turns . | . . . . Heaviest Build 15 | 12 13 15 15 Greatest Support 40 | 40 40 26 26 Greatest Overweight (x) . | . . . . Average Overweight (x) . | . . . . Largest Inventory Capacity 8 | 8 8 8 8 Average Capacity 8 | 8 8 8 8 Most Carried 8 | 6 8 8 8 Average Carried 7 | 6 7 7 7 Final Capacity 8 | 8 8 8 8 Final Carried 8 | 6 8 8 4 Class Distribution -------------------- 100% | Mutant Dominant Class ---------------- Mutant | -10/Materials Mutant | -10/Mines Mutant | -10/Exiles Resources | -11 -10 -10 -10 ----------- Run | Scr Mat Min Exi Matter Collected 692 | 200 376 116 . Remotely . | . . . . Salvage Created 428 | . 419 . 9 Parts 25 | . 25 . . Haulers Intercepted . | . . . . Recyclers Shooed . | . . . . Parts Field Recycled . | . . . . Retrieved Matter . | . . . . Parts Self-Destructed . | . . . . Prevented . | . . . . Kills | -11 -10 -10 -10 ------- Run | Scr Mat Min Exi Combat Hostiles Destroyed 18 | . 13 . 5 Guns 13 | . 13 . . AOE 5 | . . . 5 Classes Destroyed 5 | . 4 . 1 Worker 1 | . 1 . . Watcher 1 | . 1 . . Swarmer 6 | . 6 . . Grunt 7 | . 7 . . Assembled 5 | . . . 5 Best Kill Streak 5 | . 5 . 5 Combat Bots Only 5 | . 5 . 5 Max Kills in Single Turn 2 | . 2 . 2 Gunslinging 1 | . 1 . . Exploded 2 | . . . 2 Melee . | . . . . Uniques/NPCs Destroyed . | . . . . Combat | -11 -10 -10 -10 -------- Run | Scr Mat Min Exi Damage Taken 1213 | . 414 50 749 Core 252 | . 58 20 174 Absorbed by Shields . | . . . . Core Remaining (%) 100 | 100 . . . Volleys Fired 70 | . 51 . 19 Largest 2 | . 2 . 2 Hottest 76 | . 60 . 76 Shots Fired 133 | . 100 . 33 Gun 127 | . 98 . 29 Cannon . | . . . . Launcher 6 | . 2 . 4 Special . | . . . . Kinetic 117 | . 90 . 27 Thermal 10 | . 8 . 2 Explosive 6 | . 2 . 4 Electromagnetic . | . . . . Robot Hit Streak 9 | . 9 . 7 Robot Miss Streak 4 | . 4 . 2 Penetration Max . | . . . . Secondary Targets 3 | . 3 . . Max Gunslinging Chain 1 | . 1 . . Shots Hit Robots 79 | . 57 . 22 Core Hits 38 | . 21 . 17 Critical Kills . | . . . . Critical Parts Destroyed . | . . . . Critical Strikes . | . . . . Melee Attacks . | . . . . Impact . | . . . . Slashing . | . . . . Piercing . | . . . . Sneak Attacks . | . . . . Combat Hostiles . | . . . . Follow-up Attacks . | . . . . Damage Inflicted 1266 | . 748 . 518 Guns 1032 | . 737 . 295 Cannons . | . . . . Explosions 232 | . 9 . 223 Melee . | . . . . Ramming 2 | . 2 . . Kinetic 997 | . 703 . 294 Thermal 35 | . 34 . 1 Explosive 232 | . 9 . 223 Electromagnetic . | . . . . Impact . | . . . . Slashing . | . . . . Piercing . | . . . . Highest Corruption 9 | . . 5 9 Average Corruption 5 | . . 5 6 Corruption Purged . | . . . . Corruption Blocked . | . . . . Effects 17 | . . 14 3 Message Errors 3 | . . 3 . Matter Fused 6 | . . 5 1 Heat Flow Errors 1 | . . 1 . Energy Discharges 3 | . . 3 . Data Loss (major) 2 | . . 1 1 Misfires 1 | . . . 1 Alerts 1 | . . 1 . Overload Shots . | . . . . Overflow Damage . | . . . . Projectiles . | . . . . Explosions . | . . . . Melee . | . . . . Knockbacks . | . . . . Impact . | . . . . Kinetic . | . . . . Secondary . | . . . . Self-Inflicted Damage 38 | . . . 38 Shots 1 | . . . 1 Rammed . | . . . . Targets Rammed 1 | . 1 . . Kicked . | . . . . Crushed 1 | . 1 . . Highest Temperature 190 | . 9 190 18 Average Temperature 31 | . 8 98 13 Received Heat Transfer 153 | . 153 . . Siege Activations . | . . . . Robots Corrupted . | . . . . Combat Hostiles . | . . . . Parts Fried . | . . . . Impact Corruptions . | . . . . Robots Melted . | . . . . Combat Hostiles . | . . . . Parts Melted 1 | . 1 . . Heat Transferred 84 | . 75 . 9 Parts Sabotaged . | . . . . Parts Stolen . | . . . . Parts Stripped . | . . . . Power Chain Reactions . | . . . . Missiles Intercepted . | . . . . Alert | -11 -10 -10 -10 ------- Run | Scr Mat Min Exi Peak Influence 183 | . 183 7 . Initial . | . . . . Average 37 | . 56 1 . Maximum Alert Level . | . . . . Low Security (%) 100 | 100 100 100 . Level 1 . | . . . . Level 2 . | . . . . Level 3 . | . . . . Level 4 . | . . . . Level 5 . | . . . . High Security . | . . . . Max Security . | . . . . Squads Dispatched 1 | . 1 . . Investigation 1 | . 1 . . Extermination . | . . . . Reinforcement . | . . . . Assault . | . . . . Garrison . | . . . . Intercept . | . . . . Searches Triggered . | . . . . Construction Impeded . | . . . . Haulers Reinforced . | . . . . Active Scanning Responses . | . . . . Cargo Convoy Interrupts . | . . . . Stealth | -11 -10 -10 -10 --------- Run | Scr Mat Min Exi Distress Signals 3 | . 3 . . Communications Jammed . | . . . . Distress Signals . | . . . . Times Spotted 32 | . 24 . 8 Peak Tracking Total 9 | . 6 . 9 Tactical Retreats . | . . . . Traps | -11 -10 -10 -10 ------- Run | Scr Mat Min Exi Traps Triggered 4 | . 3 1 . Indirectly . | . . . . Trap Hack Attempts . | . . . . Triggered . | . . . . Disarmed . | . . . . Reprogrammed . | . . . . Reused . | . . . . Traps Extracted . | . . . . Installed . | . . . . Triggered . | . . . . Machines | -11 -10 -10 -10 ---------- Run | Scr Mat Min Exi Machines Disabled 3 | . . . 3 Max in Single Turn 1 | . . . 1 Machines Sabotaged . | . . . . Garrisons Compromised . | . . . . Overloaded Fab Kills . | . . . . Hacking | -11 -10 -10 -10 --------- Run | Scr Mat Min Exi Machines Accessed 11 | . 9 2 . Terminals 8 | . 7 1 . Fabricators . | . . . . Repair Stations . | . . . . Recycling Units 2 | . 2 . . Scanalyzers . | . . . . Garrison Access . | . . . . Total Hacks 24 | . 19 5 . Successful 16 | . 13 3 . Failed 8 | . 6 2 . Catastrophic . | . . . . Database Lockouts . | . . . . Manual 20 | . 16 4 . Terminals 21 | . 17 4 . Fabricators . | . . . . Repair Stations . | . . . . Recycling Units 2 | . 2 . . Scanalyzers . | . . . . Garrison Access . | . . . . Terminal Hacks 7 | . 5 2 . Part Schematic 1 | . . 1 . Robot Analysis 2 | . 2 . . Prototype ID Bank 1 | . 1 . . Open Door 1 | . . 1 . Unreport Threat 1 | . 1 . . Locate Traps 1 | . 1 . . Fabricator Hacks . | . . . . Repair Station Hacks . | . . . . Recycling Unit Hacks 2 | . 2 . . Report Inventory 2 | . 2 . . Scanalyzer . | . . . . Garrison Access Hacks . | . . . . Unauthorized Hacks 7 | . 6 1 . Terminals 7 | . 6 1 . Track 2 | . 1 1 . Assimilate 1 | . 1 . . Botnet 2 | . 2 . . Operators 2 | . 2 . . Fabricators . | . . . . Repair Stations . | . . . . Recycling Units . | . . . . Scanalyzers . | . . . . Garrison Access . | . . . . Data Cores Recovered . | . . . . Used . | . . . . Hacking Detections 7 | . 6 1 . Full Trace Events . | . . . . Feedback Events . | . . . . Feedback Blocked . | . . . . Robot Schematics Acquired . | . . . . Robots Built . | . . . . Authchips . | . . . . Time . | . . . . Total Robot Build Rating . | . . . . Part Schematics Acquired 1 | . . 1 . Parts Built . | . . . . Authchips . | . . . . Time . | . . . . Total Part Build Rating . | . . . . Parts Repaired . | . . . . Time . | . . . . Parts Recycled . | . . . . Recycled Matter . | . . . . Retrieved Matter . | . . . . Retrieved Components . | . . . . Parts Scanalyzed . | . . . . Part Schematics Acquired . | . . . . Parts Damaged . | . . . . Bothacking | -11 -10 -10 -10 ------------ Run | Scr Mat Min Exi Used RIF Installer . | . . . . Robots Hacked . | . . . . Non-combat . | . . . . Combat . | . . . . Robot Hacks Applied . | . . . . Relay Couplers Released . | . . . . Fabnet Peak Effective % . | . . . . Robots Rewired . | . . . . Allies Hacked . | . . . . Hacks Repelled . | . . . . Allies | -11 -10 -10 -10 -------- Run | Scr Mat Min Exi Total Allies 3 | . 1 2 . Largest Group 2 | . 1 2 1 Highest-Rated Group 48 | . 10 48 31 Highest-Rated Ally 31 | . 10 31 31 Total Orders . | . . . . Ally Attacks . | . . . . Total Damage . | . . . . Kills . | . . . . Allies Corrupted . | . . . . Allies Melted . | . . . . Intel | -11 -10 -10 -10 ------- Run | Scr Mat Min Exi Robot Analysis Total 2 | . 2 . . Derelict Logs Recovered 1 | . . 1 . Drone Launches . | . . . . Drone Recoveries . | . . . . Exploration | -11 -10 -10 -10 ------------- Run | Scr Mat Min Exi Turns Passed 2838 | 81 1812 859 86 Spaces Moved 1696 | 64 901 704 27 Core . | . . . . Treads 712 | 5 707 . . Legs 984 | 59 194 704 27 Wheels . | . . . . Hover . | . . . . Flight . | . . . . Fastest Speed 120 | 120 120 120 120 Average Speed 136 | 123 151 120 120 Slowest Speed 160 | 160 160 120 120 Overloaded Moves . | . . . . Propulsion Burnouts . | . . . . Robots Hopped . | . . . . Cave-ins Triggered . | . . . . Exploration Rate (%) 52 | 3 99 99 10 Regions Visited 3 Branch Regions 2 Pre-discovered Areas 1 | . . 1 . Known Exits Taken . | . . . . Unknown Exits Taken 3 | 1 1 1 . Scrap Searched 1 | . . 1 . Spaces Dug . | . . . . Terrain Destroyed 40 | . 16 . 24 Melee . | . . . . Projectile 4 | . . . 4 AOE 36 | . 16 . 20 Terrain Rammed . | . . . . Walls Destroyed . | . . . . Machines Disabled . | . . . . Actions | -11 -10 -10 -10 --------- Run | Scr Mat Min Exi Total 2083 | 65 1249 718 51 Wait 272 | . 262 10 . Move 1693 | 63 900 703 27 Hop . | . . . . Pick Up 11 | . 10 1 . Fast Attach 8 | . 8 . . Attach 6 | . 2 . 4 Detach . | . . . . Swap 9 | 2 4 2 1 Drop 13 | . 11 2 . Fire 70 | . 51 . 19 Melee . | . . . . Ram . | . . . . Kick . | . . . . Crush 1 | . 1 . . Escape Stasis . | . . . . Rewire . | . . . . Trap . | . . . . Miscellaneous . | . . . . Route ------- -11/Scrapyard -10/Materials (discovered 5 exits: [*Mat x3] / *Min x2) -10/Mines (discovered 3 exits: [*Mat x2] / [*Exi]) -10/Exiles History --------- Turn | Location | Event 1 | -11/Scrapyard | Discovered new exit (range 3) 82 | -11/Scrapyard | Entered Materials 304 | -10/Materials | Build established: Mutant 381 | -10/Materials | Discovered new exit (range 3) 801 | -10/Materials | Discovered new exit (range 6) 860 | -10/Materials | Discovered new exit (range 13) 1213 | -10/Materials | Discovered new exit (range 11) 1429 | -10/Materials | Discovered new exit (range 10) 1894 | -10/Materials | Entered Mines 1957 | -10/Mines | A weapon hastily lodged in a ceiling crevice suddenly fell to the ground 1996 | -10/Mines | Deemed a non-threat by the Exiles lab entrance 1997 | -10/Mines | Discovered new exit (range 5) 2187 | -10/Mines | Met a Derelict who couldn't figure out how to use a Trap Extractor 2243 | -10/Mines | Learned Materials terminal intel 2390 | -10/Mines | Discovered new exit (range 9) 2511 | -10/Mines | Learned location of Storage (-8) 2533 | -10/Mines | Discovered new exit (range 7) 2753 | -10/Mines | Entered Exiles 2753 | -10/Exiles | Accompanied by 1 ally 2783 | -10/Exiles | Led the pair of lost Derelicts to a safe place 2783 | -10/Exiles | Attacked by the Exiles 2799 | -10/Exiles | Core integrity fell below 50% 2824 | -10/Exiles | Core integrity fell below 20% 2839 | -10/Exiles | Destroyed by 8R-AWN with 8R-AWN's Boregun Last Messages --------------- 02810_ R3-8ZN(g) destroyed. 02810_ Penetrated by HV Slug. 02814_ System corrupted: Matter fused (-5). 02815_ HV Slug penetrates Earth. 02815_ Penetrated by HV Slug. 02817_ HV Slug penetrates Earth. 02817_ Penetrated by HV Slug. 02819_ HV Slug penetrates Earth. 02819_ Penetrated by HV Slug. 02826_ Critical hit (Destroy). 02826_ Hvy. Battle Rifle destroyed. 02826_ HV Slug penetrates Earth. 02828_ Penetrated by HV Slug. 02831_ Critical hit (Destroy). 02831_ Imp. Aluminum Leg destroyed. 02831_ Penetrated by HV Slug. 02835_ HV Slug penetrates Wall. 02835_ Penetrated by HV Slug. 02835_ Assault Rifle destroyed. 02839_ Penetrated by HV Slug. Map ----- +----------------------------------------------------+ | ?????????????????????????????????????????????????? | | ?????????????????????????????????????????????????? | | ?????????????????????????????????????????????????? | | ?????????????????????????????????????????????????? | | ?????????????????????????????????????????????????? | | ?????????????????????????????????????????????????? | | ?????????????????????????????????????????????????? | | ?????????????????????????????????????????????????? | | ?????????????????????????????????????????????????? | | ?????????????????????????????????????????????????? | | ?????????????????????????????????????????????????? | | ???????????????????????????????????????? ????????? | | ???????????????????????????????????????? ??????? | | ???????????????????????????????????????? ?????? | | ???????????????????????????????????????# #?????? | | ?????????????????????????????????????## ##????? | | ?????????????????????????????????????# #????? | | ?????????????????##??????????????????# #????? | | ????????????????##" ????????????????## ?????? | | ????????????#####" ##????????????## #??????? | | ????????????# ; #;#???????????# #??????? | | ????????????# #?###????### #???????? | | ????????????# # ###### #???????? | | ?????????????# g ""## #????????? | | ????????????# % * ##???????? | | ?????????? @ #???????? | | ?????????????????# # ##??????? | | ???????????????????#" ###????? | | ???????????????????## # ; ;;; ###??? | | ????????????????????##### ## ####;;%= ##?? | | ????????????????????????# #?## #???#;; #?? | | ????????????????????????###???# #????#;# #?? | | ???????????????????????????????# #?????### #?? | | ????????????????????????????????# #?????#" ##? | | ?????????????????????????????????# ?????#### ## | | ??????????????????????????????????? ???????# | | ???????????????????????????????????? ??????## | | ????????????????????????????????????????????### | | ??????????????????????????????????????????????# | | ??????????????????????????????????????????????## | | ???????????????????????????????????????????????### | | ?????????????????????????????????????????????????? | | ?????????????????????????????????????????????????? | | ?????????????????????????????????????????????????? | | ?????????????????????????????????????????????????? | | ?????????????????????????????????????????????????? | | ?????????????????????????????????????????????????? | | ?????????????????????????????????????????????????? | | ?????????????????????????????????????????????????? | | ?????????????????????????????????????????????????? | +----------------------------------------------------+ Best States ------------- Heat Dissipation 25 Energy Generation 10 Energy Capacity 125 Matter Stores 300 Matter Capacity 300 Sight Range 16 Terrain Scan Density 10 Power Shielding 33 Evasion (%) 55 Targeting Accuracy 5 Recoil Reduction 2 Item Schematics ----------------- Lrg. Storage Unit | -10/Mines | Hacked Robot Schematics ------------------ None Fabricated ------------ Nothing Alien Tech Used ----------------- None Achievements -------------- None Challenges ------------ None Game ------ Seed ThermoelectricMyomerCleaver Manual? 0 Play Time 00:19:10 Cumulative 28.9 hours Start 2022.07.28 @ 14:49:04 End 2022.07.28 @ 15:06:53 Sessions 1 Manual Loads 0 Difficulty Rogue Special Mode None Game No. 29 Rogue 29 Adventurer 0 Explorer 0 Win Type - Total 0 Types 0/0/0/0/0/0/0/0/0 Lore% 18 Gallery% 23 Achievement% 51 Wizard Run 0 Options --------- ASCII 1 Keyboard 1 Movement Arrows Keybinds 0 Fullscreen 1 Font 32/SmallcapsGlow Map View 63x52 Tactical HUD 1 Map Filters NONE Filters NONE Steam 1 RUN: 12a38077-ea25-4bc2-b407-0df8b3306388